[Event "SUI-ch Bundesturnier TP-1 2022"]
[Site "Payerne"]
[Date "2022.05.28"]
[Round "6.2"]
[White "Colmenares, Aurelio"]
[Black "Laurent-Paoli, Pierre"]
[Result "1-0"]
[ECO "C12"]
[WhiteElo "2318"]
[BlackElo "2486"]
[Annotator "TA"]
[PlyCount "119"]
[EventDate "2022.05.26"]
[EventType "swiss"]
[EventCountry "SUI"]
[SourceTitle "playchess.com"]
[Source "ChessBase"]
[SourceQuality "1"]
[TimeControl "5400+30"]

{[%evp 10,119,45,39,53,36,38,30,33,35,42,12,6,11,16,20,30,11,14,25,41,0,0,0,0,0,0,0,0,0,0,0,0,-9,0,-27,0,0,52,60,48,62,37,13,23,20,83,20,49,9,109,123,145,0,44,0,152,140,181,130,221,177,177,102,117,118,230,231,376,366,493,418,470,426,501,309,475,437,583,595,564,433,534,483,12831,12832,12832,98,12833,12833,1557,12834,12833,12834,12834,12835,12830,12829,6833,8197,2051,12825,5281,4279,12842,12841,12842,1848,12842,12842,12845,12844]} 1. e4 {[%emt 0:00:58]} e6 {[%emt 0:01:03]} 2. d4 {[%emt 0:00:07]} d5 {[%emt 0:00:04]} 3. Nc3 {[%emt 0:00:06]} Nf6 {[%emt 0:00:06]} 4. Bg5 {[%emt 0:00:57]} h6 {[%emt 0:00:18]} 5. Bxf6 {[%emt 0:01:29]} Qxf6 {[%emt 0:00:24]} 6. exd5 {[%emt 0:01:51]} Bb4 {[%emt 0:00:05] C12: French: Classical System: McCutcheon Variation.} 7. Bb5+ {[%emt 0:02:07]} Bd7 {[%emt 0:00:16]} 8. Bxd7+ {[%emt 0:00:29]} Nxd7 {[%emt 0:00:05] White has an edge.} 9. dxe6 {[%emt 0:00:13]} Qxe6+ {[%emt 0:00:06]} 10. Qe2 {[%emt 0:01:35]} Bxc3+ {[%emt 0:00:43]} 11. bxc3 {[%emt 0:00:06]} Qxe2+ $1 {[%emt 0:00:10]} 12. Nxe2 {[%emt 0:00:30]} O-O-O {[%emt 0:00:05]} 13. O-O-O {[%emt 0:02:45]} Nb6 {[%emt 0:00:21]} 14. Rhe1 {[%emt 0:00:50]} Rd6 {[%emt 0:01:37]} 15. Nf4 {[%emt 0:06:05]} Rhd8 {[%emt 0:05:58]} 16. Re5 {[%emt 0:08:51]} Na4 {[%emt 0:13:49] [#]} 17. Ne2 $146 {[%emt 0:18:12]} ({Predecessor:} 17. Rd3 Rf6 18. Nh3 Rc6 19. Ree3 Nb6 20. Re7 g5 21. Rxf7 Nc4 22. Rf5 Re8 23. Rc5 Rxc5 24. dxc5 {½-½ (58) Sanal,V (2556)-Cheng,B (2552) Krasnaya Polyana 2021}) 17... Rf6 {[%emt 0:02:26]} 18. f4 {[%emt 0:03:40]} Nb6 {[%emt 0:00:33]} 19. Re1 {[%emt 0:02:37]} Nc4 {[%emt 0:03:45]} 20. Rc5 {[%emt 0:00:43]} Ne3 {[%emt 0:02:16]} 21. g3 {[%emt 0:02:47]} b6 {[%emt 0:06:10]} 22. Re5 {[%emt 0:00:38]} Ng4 {[%emt 0:01:12][%mdl 1024] Black has compensation.} (22... Nc4 $5 {[%cal Rc4e5]}) 23. Re7 {[%emt 0:00:17]} h5 {[%emt 0:32:18]} (23... Nxh2 $11 24. Kb2 Nf3) 24. h3 $14 {[%emt 0:02:03]} Nh6 {[%emt 0:00:03]} 25. Re5 {[%emt 0:00:35]} g6 {[%emt 0:00:30]} 26. Kd2 {[%emt 0:00:30]} Nf5 {[%emt 0:00:30]} (26... Rc6 {feels hotter.} 27. Kd3 Nf5 28. g4 hxg4 29. hxg4 Nd6) 27. Kd3 $36 {[%emt 0:00:30][%mdl 2048] White has some pressure.} Nd6 {[%emt 0:00:30]} (27... Rc6 $11 {keeps the balance.}) 28. a4 {[%emt 0:00:30]} (28. c4 $16) 28... Nb7 $11 {[%emt 0:00:30]} 29. c4 {[%emt 0:00:30]} (29. Ra1 $5 {[%cal Re5e7]}) 29... Nc5+ {[%emt 0:00:30]} (29... Rc6 $11) 30. Kc3 $1 $16 {[%emt 0:00:30]} Ne6 {[%emt 0:00:30][%cal Oh5h4]} 31. Kd3 {[%emt 0:06:09]} ({White should try} 31. a5 $16) 31... Nc5+ $14 {[%emt 0:06:59]} 32. Kc3 {[%emt 0:00:37]} (32. Ke3 $14 Nxa4 33. d5) 32... Ne6 $1 $16 {[%emt 0:00:25][%cal Oh5h4]} 33. h4 {[%emt 0:01:57]} Ng7 {[%emt 0:00:18]} 34. a5 {[%emt 0:00:38]} (34. d5 $18) 34... Kb7 {[%emt 0:01:06]} (34... Rfd6 $16 {might work better.} 35. d5 c6) 35. axb6 {[%emt 0:05:32]} axb6 {[%emt 0:00:03]} 36. Ra1 {[%emt 0:01:30]} (36. d5 $1 $18) 36... Nf5 {[%emt 0:00:25] Inhibits Nd4.} 37. d5 $1 {[%emt 0:04:04]} Rfd6 {[%emt 0:00:03]} (37... Ra8 $16 38. Rxa8 Kxa8 39. Re8+ Kb7) 38. Nd4 $1 $18 {[%emt 0:01:15]} Nxg3 {[%emt 0:00:56]} (38... Nxd4 $142 39. Kxd4 R8d7) 39. Re7 {[%emt 0:04:01]} R8d7 {[%emt 0:01:48]} 40. Rxd7 {[%emt 0:03:05]} Rxd7 {[%emt 0:00:40][%mdl 4096] Endgame KRN-KRN} 41. Nc6 {[%emt 0:00:11]} Nf5 {[%emt 0:01:04]} 42. Ra7+ {[%emt 0:00:59]} Kc8 {[%emt 0:00:03]} 43. Kb4 {[%emt 0:01:49] Hoping for Kb5.} Rd6 {[%emt 0:00:23]} 44. Ra8+ {[%emt 0:03:17]} Kb7 {[%emt 0:00:09]} 45. Rb8+ {[%emt 0:00:15]} Ka6 {[%emt 0:00:04]} 46. c3 {[%emt 0:00:38]} Nxh4 {[%emt 0:03:52]} (46... f6 $142 47. Rg8 Ne3 48. Rxg6 Nc2+ 49. Kb3 Ne3) 47. Ra8+ {[%emt 0:00:43]} Kb7 {[%emt 0:00:02]} 48. Ra7+ {[%emt 0:00:07]} Kc8 {[%emt 0:00:03] [#] This costs Black the game.} 49. Kb5 $1 {[%emt 0:00:14] White is clearly winning.} Kd7 {[%emt 0:00:02]} 50. Ra8 {[%emt 0:00:27][%csl Gc6][%cal Ra8d8]} Rxc6 {[%emt 0:00:13]} 51. dxc6+ {[%emt 0:00:02] KR-KN} Ke6 {[%emt 0:05:57]} 52. Rc8 {[%emt 0:00:18]} Kd6 {[%emt 0:00:17]} 53. Rd8+ {[%emt 0:00:07]} Ke6 {[%emt 0:00:03]} 54. Rd7 {[%emt 0:00:11]} Nf5 {[%emt 0:00:44]} 55. Rxc7 {[%emt 0:00:55]} h4 {[%emt 0:00:12]} 56. Rd7 {[%emt 0:02:36]} Nd6+ {[%emt 0:00:53]} 57. Kxb6 {[%emt 0:00:25]} h3 {[%emt 0:01:00] [#]} 58. Rd8 {[%emt 0:00:53]} (58. Rxd6+ $142 $1 Kxd6 59. c7) 58... Nxc4+ {[%emt 0:00:04]} 59. Kc5 {[%emt 0:00:12] Intending c7 and mate.} Na5 {[%emt 0:00:24]} 60. c7 {[%emt 0:01:03] Weighted Error Value: White=0.19 (very precise) /Black=0.29 (precise)} 1-0

[Event "SUI-ch Bundesturnier TP-1 2022"]
[Site "Payerne"]
[Date "2022.05.28"]
[Round "6.3"]
[White "Willems, Niels"]
[Black "Kamber, Bruno"]
[Result "1/2-1/2"]
[ECO "A28"]
[WhiteElo "2338"]
[BlackElo "2225"]
[Annotator "TA"]
[PlyCount "45"]
[EventDate "2022.05.26"]
[EventType "swiss"]
[EventCountry "SUI"]
[SourceTitle "playchess.com"]
[Source "ChessBase"]
[SourceQuality "1"]
[TimeControl "5400+30"]

{[%evp 12,45,18,6,0,-27,0,-22,-29,-26,0,-3,0,0,3,-12,-12,-21,0,-30,-31,-33,0,-3,-1,-16,0,0,0,0,0,0,0,0,0,0]} 1. c4 {[%emt 0:00:05]} e5 {[%emt 0:02:11]} 2. Nc3 {[%emt 0:00:24]} Bb4 {[%emt 0:00:08]} 3. Qc2 {[%emt 0:00:16]} Nf6 {[%emt 0:02:57]} 4. Nf3 {[%emt 0:00:09]} Nc6 {[%emt 0:00:31]} 5. e3 {[%emt 0:00:14]} Bxc3 {[%emt 0:01:30]} 6. Qxc3 {[%emt 0:02:06]} Qe7 {[%emt 0:00:07]} 7. a3 {[%emt 0:00:58] 7.d4 is more fashionable.} d5 {[%emt 0:00:59] A28: English Opening: Four Knights Variation.} 8. Be2 {[%emt 0:04:40]} O-O {[%emt 0:00:34][%cal Od5d4,Bh8f8,Bf8d8,Bd8d2][%mdl 32]} 9. d4 {[%emt 0:05:10]} exd4 {[%emt 0:02:52]} 10. Nxd4 {[%emt 0:00:19]} Nxd4 {[%emt 0:00:24]} 11. Qxd4 {[%emt 0:00:28]} c5 {[%emt 0:00:15] [#]} 12. Qh4 $146 {[%emt 0:01:12]} ({Predecessor:} 12. Qf4 dxc4 13. Bxc4 Be6 14. O-O Bxc4 15. Qxc4 Rfd8 16. f3 a6 17. a4 b5 18. Qa2 {½-½ (45) Anistratov,D (2240)-Lohr,M (2108) Wuerttemberg 2020}) 12... dxc4 {[%emt 0:00:20]} 13. Bxc4 {[%emt 0:01:07]} Rd8 {[%emt 0:01:05] [#] aiming for ...Rd4.} 14. O-O {[%emt 0:00:55]} Be6 {[%emt 0:00:13]} 15. b3 {[%emt 0:05:41]} Bxc4 {[%emt 0:03:03]} 16. Qxc4 {[%emt 0:01:30]} Rac8 {[%emt 0:01:44]} 17. Bb2 {[%emt 0:00:54] The position is equal.} Ne4 {[%emt 0:00:55] With the idea ...Rd2.} 18. f3 {[%emt 0:06:10]} Rd2 {[%emt 0:06:28][%cal Oe7g5] [#] ( -> ...Qg5!)} 19. fxe4 {[%emt 0:33:35]} Rxb2 {[%emt 0:00:24]} 20. Qc3 $1 {[%emt 0:04:31]} Re2 {[%emt 0:00:11]} 21. Qd3 {[%emt 0:00:12]} Rb2 {[%emt 0:00:10] ...Rd8 is the strong threat.} 22. Qc3 $1 {[%emt 0:00:35]} Re2 {[%emt 0:00:06]} 23. Qd3 {[%emt 0:00:02] Weighted Error Value: White=0.08 (flawless) /Black=0.07 (flawless)} 1/2-1/2

[Event "SUI-ch Bundesturnier TP-1 2022"]
[Site "Payerne"]
[Date "2022.05.28"]
[Round "6.4"]
[White "Schlegel, Igor"]
[Black "Sutter, Oliver"]
[Result "0-1"]
[ECO "B13"]
[WhiteElo "2183"]
[BlackElo "2316"]
[Annotator "TA"]
[PlyCount "42"]
[EventDate "2022.05.26"]
[EventType "swiss"]
[EventCountry "SUI"]
[SourceTitle "playchess.com"]
[Source "ChessBase"]
[SourceQuality "1"]
[TimeControl "5400+30"]

{[%evp 9,42,11,14,4,2,4,6,14,18,7,5,8,19,6,13,18,29,25,25,27,22,30,37,29,35,27,27,30,30,39,39,22,42,-551,-535]} 1. e4 {[%emt 0:00:03]} c6 {[%emt 0:00:19]} 2. d4 {[%emt 0:00:04]} d5 {[%emt 0:00:06]} 3. exd5 {[%emt 0:00:35]} cxd5 {[%emt 0:00:06]} 4. Nf3 {[%emt 0:01:39]} Nc6 {[%emt 0:01:09]} 5. Bb5 {[%emt 0:00:08]} Nf6 {[%emt 0:02:04]} 6. Ne5 {[%emt 0:00:11] B13: Caro-Kann: Exchange Variation and Panov-Botvinnik Attack.} Bd7 {[%emt 0:00:13]} 7. Nxd7 {[%emt 0:00:06]} Qxd7 {[%emt 0:00:08]} 8. c3 {[%emt 0:00:10] The position is equal.} e6 {[%emt 0:02:32]} 9. O-O {[%emt 0:00:53]} Bd6 {[%emt 0:02:25]} 10. Nd2 {[%emt 0:00:07]} Qc7 {[%emt 0:02:16]} 11. Nf3 {[%emt 0:01:20]} O-O {[%emt 0:01:31]} 12. Bd3 {[%emt 0:03:41] [#]} e5 $146 {[%emt 0:11:03]} ({Predecessor:} 12... Bf4 13. Bxf4 Qxf4 14. Qd2 Qxd2 15. Nxd2 Ne8 16. Rae1 Nd6 17. Nf3 Rfc8 18. Ne5 g6 {0-1 (53) Hernandez,E (2279)-Velten,P (2515) San Sebastian 2019}) 13. dxe5 {[%emt 0:00:31]} Nxe5 {[%emt 0:00:04]} 14. h3 {[%emt 0:05:49]} Nxd3 {[%emt 0:03:01]} 15. Qxd3 {[%emt 0:00:14]} Qc4 {[%emt 0:07:01]} 16. Rd1 {[%emt 0:02:40] [#] Qxc4 is the strong threat.} Bc5 {[%emt 0:02:00]} 17. Bg5 {[%emt 0:22:18] And now Bxf6 would win.} Ne4 {[%emt 0:06:30]} 18. Be3 {[%emt 0:18:09]} Bxe3 {[%emt 0:04:07]} 19. Qxe3 {[%emt 0:01:13]} Rfe8 {[%emt 0:01:31]} 20. Qd3 {[%emt 0:09:41]} Nf6 {[%emt 0:04:01]} 21. Nd4 $2 {[%emt 0:01:28][%mdl 8192] [#]} (21. Qxc4 $14 {keeps the upper hand.} dxc4 22. Rd4) 21... Re1+ $3 {[%emt 0:00:57][%mdl 512] Weighted Error Value: White=0.54/Black=0.04 (flawless)} 0-1

[Event "SUI-ch Bundesturnier TP-1 2022"]
[Site "Payerne"]
[Date "2022.05.28"]
[Round "6.5"]
[White "Pahud, Cedric"]
[Black "Joie, Sebastien"]
[Result "0-1"]
[ECO "B13"]
[WhiteElo "2211"]
[BlackElo "2376"]
[Annotator "TA"]
[PlyCount "60"]
[EventDate "2022.05.26"]
[EventType "swiss"]
[EventCountry "SUI"]
[SourceTitle "playchess.com"]
[Source "ChessBase"]
[SourceQuality "1"]
[TimeControl "5400+30"]

{[%evp 22,60,26,0,24,21,46,39,31,13,16,0,0,0,-8,0,15,17,24,24,25,18,21,19,25,39,31,31,31,25,23,0,12,0,31,0,31,-4798,-2483,-5525,-5018]} 1. e4 {[%emt 0:00:03]} c6 {[%emt 0:06:34]} 2. d4 {[%emt 0:00:23]} d5 {[%emt 0:00:04]} 3. exd5 {[%emt 0:00:36]} cxd5 {[%emt 0:00:03]} 4. Bd3 {[%emt 0:00:11]} Nc6 {[%emt 0:00:04]} 5. c3 {[%emt 0:00:07]} Nf6 {[%emt 0:00:04]} 6. Bf4 {[%emt 0:00:12]} Bg4 {[%emt 0:00:06]} 7. Qb3 {[%emt 0:02:32]} Qd7 {[%emt 0:00:17]} 8. Nd2 {[%emt 0:00:24]} e6 {[%emt 0:00:05]} 9. Ngf3 {[%emt 0:00:05]} Bxf3 {[%emt 0:00:05]} 10. Nxf3 {[%emt 0:00:04]} Bd6 {[%emt 0:00:05]} 11. Bg3 {[%emt 0:00:56]} O-O {[%emt 0:02:47]} 12. O-O {[%emt 0:00:17]} Rab8 {[%emt 0:08:35] B13: Caro-Kann: Exchange Variation and Panov-Botvinnik Attack.} 13. Rae1 {[%emt 0:02:25]} Nh5 {[%emt 0:06:04]} 14. Bxd6 {[%emt 0:14:20]} Qxd6 {[%emt 0:00:13] [#] White is slightly better.} 15. Ne5 $146 {[%emt 0:00:58]} ({Predecessor:} 15. Qd1 g6 16. Ne5 Nxe5 17. Rxe5 Nf6 18. Qe2 b5 19. a3 Rb6 20. Re3 Rfb8 21. g3 {0-1 (35) Panagiotakopoulos,G (2210)-Theodoulidis,T (2090) Achaia 2013}) 15... f6 {[%emt 0:03:13]} (15... Nf4 {seems wilder.} 16. Bb1 Nxe5 17. dxe5 Qc5) 16. Nxc6 {[%emt 0:17:55]} bxc6 {[%emt 0:00:18]} 17. Qc2 {[%emt 0:25:41]} g6 {[%emt 0:00:17]} 18. b4 {[%emt 0:00:05]} Nf4 {[%emt 0:04:51]} 19. g3 {[%emt 0:01:29]} Nxd3 {[%emt 0:00:20]} 20. Qxd3 {[%emt 0:00:02]} e5 {[%emt 0:00:12]} 21. dxe5 {[%emt 0:02:44]} fxe5 {[%emt 0:00:13]} 22. Qe3 {[%emt 0:00:48][%csl LRa7,LRe5]} d4 {[%emt 0:08:18]} 23. Qxe5 {[%emt 0:04:24]} Qxe5 {[%emt 0:00:09]} 24. Rxe5 {[%emt 0:00:01]} dxc3 $11 {[%emt 0:00:11][%mdl 4096] Endgame KRR-KRR} 25. a3 {[%emt 0:02:14]} Rb5 $1 {[%emt 0:03:58]} 26. Rfe1 {[%emt 0:10:11]} Rd5 {[%emt 0:01:24]} ({Don't take} 26... Rxe5 27. Rxe5 Rf3 28. Rc5 $16) 27. R5e2 {[%emt 0:03:00]} Rf3 {[%emt 0:22:04]} 28. Rc2 {[%emt 0:02:11]} Kf7 {[%emt 0:05:07]} 29. Re3 $2 {[%emt 0:01:03][%mdl 8192] [#]} (29. Kg2 $14 Rd2 30. Re2 Rxe2 31. Rxe2) 29... Rd1+ $19 {[%emt 0:00:06]} 30. Kg2 {[%emt 0:00:05]} Rxe3 {[%emt 0:03:18] Weighted Error Value: White=0.76/Black=0.11 (very precise)} 0-1

[Event "SUI-ch Bundesturnier TP-1 2022"]
[Site "Payerne"]
[Date "2022.05.28"]
[Round "6.6"]
[White "Stijve, Theo"]
[Black "Bosson, Jean-Yves"]
[Result "1-0"]
[ECO "A14"]
[WhiteElo "2341"]
[BlackElo "1823"]
[Annotator "TA"]
[PlyCount "57"]
[EventDate "2022.05.26"]
[EventType "swiss"]
[EventCountry "SUI"]
[SourceTitle "playchess.com"]
[Source "ChessBase"]
[SourceQuality "1"]
[TimeControl "5400+30"]

{[%evp 20,57,0,-5,10,13,94,94,78,87,149,141,151,144,164,148,201,212,246,230,303,297,409,391,679,679,699,695,858,895,1417,1468,1461,1429,1737,1677,29997,29998,29998,29999]} 1. Nf3 {[%emt 0:00:25]} Nf6 {[%emt 0:01:46]} 2. c4 {[%emt 0:00:10]} e6 {[%emt 0:00:12]} 3. g3 {[%emt 0:00:07]} d5 {[%emt 0:01:58]} 4. Bg2 {[%emt 0:00:45]} Be7 {[%emt 0:00:11]} 5. O-O {[%emt 0:00:09]} O-O {[%emt 0:00:14]} 6. b3 {[%emt 0:00:07]} c5 {[%emt 0:02:32]} 7. Bb2 {[%emt 0:00:54]} d4 {[%emt 0:00:59]} 8. e3 {[%emt 0:00:11]} Nc6 {[%emt 0:00:04]} 9. exd4 {[%emt 0:00:15]} cxd4 {[%emt 0:00:03]} 10. Re1 {[%emt 0:00:09]} Re8 {[%emt 0:05:40]} 11. d3 {[%emt 0:03:26]} Bb4 {[%emt 0:00:37] A14: English Opening: 1...e6 with b3 by White.} 12. Nbd2 {[%emt 0:01:42] [#]} Bc3 $146 {[%emt 0:12:48] [#]} (12... a5 $11) ({Predecessor:} 12... e5 13. a3 Bc3 14. Ra2 a5 15. Bxc3 dxc3 16. Nb1 e4 17. dxe4 Qxd1 18. Rxd1 Nxe4 19. Rc1 {½-½ (46) Sidorika,V (2331)-Eljanov,P (2672) Chess.com INT 2021}) 13. Bxc3 $1 $16 {[%emt 0:08:28]} dxc3 {[%emt 0:00:40] White is better.} 14. Nb1 {[%emt 0:01:04]} ({Of course not} 14. Ne4 Nxe4 15. Rxe4 e5 $11) 14... Nb4 {[%emt 0:01:02]} (14... Qa5 $142) 15. Nxc3 {[%emt 0:00:24]} Nxd3 {[%emt 0:04:43]} 16. Re2 {[%emt 0:01:39] aiming for Rd2.} Nb4 {[%emt 0:03:28]} 17. Rd2 {[%emt 0:02:00]} Qe7 {[%emt 0:04:20]} (17... Qa5 $16 18. Nb5 a6) 18. Ne5 $18 {[%emt 0:03:09]} Rb8 {[%emt 0:06:14]} 19. a3 {[%emt 0:01:32]} Na6 {[%emt 0:00:27]} 20. b4 {[%emt 0:02:57] Inhibits Nc5.} h5 {[%emt 0:03:27]} 21. Nb5 {[%emt 0:06:31][%cal Bc3b5,Bb5d6,Bd6f7,Bf7h8,Bh8g6][%mdl 32]} Ra8 $2 {[%emt 0:02:18]} (21... g6 22. Nxa7 Rf8) 22. Nd6 {[%emt 0:13:09]} Rf8 {[%emt 0:01:23]} 23. Ndxf7 {[%emt 0:02:35]} Nc7 {[%emt 0:12:11] [#]} 24. Nh8 $1 {[%emt 0:03:14][%mdl 512]} Nce8 {[%emt 0:05:16]} (24... Ng4 25. Neg6) 25. Nhg6 {[%emt 0:03:14][%csl LRe7,LRf8]} Qc7 {[%emt 0:00:03]} 26. Rd8 {[%emt 0:01:58]} Rb8 {[%emt 0:03:43]} 27. Bh3 {[%emt 0:02:25]} Rf7 {[%emt 0:02:34]} 28. Rxe8+ {[%emt 0:00:57]} Nxe8 {[%emt 0:01:17]} 29. Qxh5 {[%emt 0:00:11] White took control after the opening.  Weighted Error Value: White=0.01 (flawless) /Black=1.04} 1-0

[Event "SUI-ch Bundesturnier TP-1 2022"]
[Site "Payerne"]
[Date "2022.05.28"]
[Round "6.7"]
[White "Kostov, Deyan Samuil"]
[Black "Loeffler, Markus"]
[Result "1/2-1/2"]
[ECO "D91"]
[WhiteElo "2177"]
[BlackElo "2272"]
[Annotator "TA"]
[PlyCount "128"]
[EventDate "2022.05.26"]
[EventType "swiss"]
[EventCountry "SUI"]
[SourceTitle "playchess.com"]
[Source "ChessBase"]
[SourceQuality "1"]
[TimeControl "5400+30"]

{[%evp 15,128,8,15,-39,-29,-29,-35,-62,-60,-101,-120,-98,0,0,5,-113,-107,-116,-82,-100,-53,-52,-55,-46,-52,-48,-43,-60,0,-29,0,-79,-87,-118,-116,-125,-76,-73,-93,-326,-311,-314,-274,-897,-447,-733,-719,-717,-680,-625,-590,-483,-210,-212,-206,-210,-213,-203,-202,-204,-205,-203,-207,-200,-200,-213,-159,-158,-160,-205,-161,-352,-349,-339,-327,-409,-404,-396,-392,-425,-420,-642,-608,-432,-125,-141,-132,-132,-138,-148,-8,-8,-8,-8,-8,-350,-8,-8,-8,-8,-8,-8,0,0,0,0,0,0,0,0,0,0,0,0,0]} 1. d4 {[%emt 0:00:29]} Nf6 {[%emt 0:00:05]} 2. c4 {[%emt 0:00:06]} g6 {[%emt 0:00:03]} 3. Nc3 {[%emt 0:00:12]} d5 {[%emt 0:00:02]} 4. Nf3 {[%emt 0:00:40]} Bg7 {[%emt 0:00:03]} 5. Bg5 {[%emt 0:00:54]} Ne4 {[%emt 0:00:34]} 6. Bf4 {[%emt 0:00:42]} Nxc3 {[%emt 0:00:39]} 7. bxc3 {[%emt 0:00:06]} dxc4 {[%emt 0:00:04]} 8. e3 {[%emt 0:03:26][%cal Be2e3,Be3e4,Be4d5][%mdl 32]} Be6 {[%emt 0:02:13][%cal Oc7c5] 8...b5 is not played anymore.} 9. Ng5 {[%emt 0:11:37] D91: Grünfeld: 4 Nf3 Bg7 5 Bg5.} ({Better is} 9. Qb1 $11) 9... Bd5 $1 $15 {[%emt 0:01:08]} 10. e4 {[%emt 0:04:56]} h6 $1 {[%emt 0:00:39]} 11. exd5 {[%emt 0:00:48][%cal Og5f7] Black is slightly better.} hxg5 {[%emt 0:00:02]} 12. Be5 {[%emt 0:00:25] [#]} Bxe5 $146 {[%emt 0:31:37]} ({Predecessor:} 12... f6 13. Bg3 Qxd5 14. Bxc7 Nc6 15. Qb1 Rc8 16. Qxg6+ Kf8 17. Bg3 Qa5 18. Rc1 Nxd4 {0-1 (41) Aderito,P (2195)-Vydeslaver,A (2445) Halle 1995}) 13. dxe5 {[%emt 0:00:21]} c6 {[%emt 0:00:33]} (13... Nd7 $17 14. e6 Ne5 15. exf7+ Kxf7) 14. Bxc4 $11 {[%emt 0:06:01]} Rh4 {[%emt 0:09:03]} 15. Qe2 {[%emt 0:26:19]} (15. Bb3 $1 $11) 15... cxd5 $17 {[%emt 0:02:00]} 16. Bd3 {[%emt 0:01:19] Inhibits Re4.} Nc6 {[%emt 0:05:36]} 17. g3 {[%emt 0:07:20]} Ra4 {[%emt 0:00:34]} (17... Rh6 $17 {White must now prevent ...Qc7.} 18. e6 f6 19. Bxg6+ Kf8) 18. e6 $1 $15 {[%emt 0:02:51]} Qd6 $1 {[%emt 0:04:49]} 19. exf7+ {[%emt 0:05:29]} Kxf7 {[%emt 0:00:02]} 20. O-O {[%emt 0:00:28]} Kg7 {[%emt 0:00:29]} 21. Rfe1 {[%emt 0:01:37]} e5 {[%emt 0:06:22]} (21... Rd8 $15) 22. Rad1 {[%emt 0:04:23][%cal Od3e4]} Qf6 {[%emt 0:09:15]} 23. Bc2 {[%emt 0:03:38]} (23. Qb2 $1 $11 Ne7 24. Qxb7 (24. Bc2 Ra5 $11) 24... Rxa2 25. Re2 Rxe2 26. Bxe2) 23... Ra5 $1 $17 {[%emt 0:02:33]} 24. Bb3 {[%emt 0:05:24]} Rd8 {[%emt 0:00:31]} 25. Rd2 {[%emt 0:00:55]} e4 {[%emt 0:07:16]} (25... Rc5 $142 26. Kh1 e4) 26. Red1 {[%emt 0:02:35][%cal Rb3d5]} Qf5 {[%emt 0:01:26] Strongly threatening ...Ne5.} (26... Qxc3 27. Bxd5 Ra4 28. Bxe4 Rxd2 29. Rxd2 Rxe4 30. Rd7+ Re7 31. Rxe7+ Nxe7 32. Qxe7+ Kh6 33. Qf8+ (33. Qxb7 Qa1+ 34. Kg2 Qxa2 $11) 33... Kh7 34. Qf7+ Qg7 35. Qe6 $11) 27. Qe3 $2 {[%emt 0:03:00]} (27. g4 $17 Qf7 28. Kf1) 27... Ne5 $1 $19 {[%emt 0:02:07]} 28. Qd4 {[%emt 0:01:45]} Kh6 {[%emt 0:00:37] Threatens to win with ...Nf3+.} 29. Qb4 $2 {[%emt 0:00:46] [#]} (29. Kg2) 29... b6 {[%emt 0:02:14]} (29... Qh3 $142 $1 30. f4 Nf3+ 31. Kh1 Nxd2 32. fxg5+ Kh5 33. Qxa5 Nf1 $1 34. g4+ Kxg4) 30. Rxd5 {[%emt 0:03:00]} (30. Qe7 $142 Nf3+ 31. Kf1 Nxd2+ 32. Rxd2) 30... Raxd5 {[%emt 0:01:50]} 31. Rxd5 {[%emt 0:00:13]} Rxd5 {[%emt 0:01:46]} 32. Bxd5 {[%emt 0:00:06][%mdl 4096] Endgame KQB-KQN} Nf3+ {[%emt 0:00:20]} 33. Kg2 {[%emt 0:00:03]} Qxd5 {[%emt 0:01:57]} (33... Nd2 $142 {( -> ...Qf3+)} 34. Bc4 (34. Qd4 $2 Qf3+ 35. Kh3 g4+ 36. Kh4 g5#) 34... Qf3+ 35. Kg1 e3 36. fxe3 a5 37. Qxb6 Nxc4) 34. Qf8+ {[%emt 0:00:06]} Kh7 {[%emt 0:00:03]} 35. Qe7+ {[%emt 0:00:07]} Kg8 $1 {[%emt 0:00:27]} 36. Qe8+ {[%emt 0:00:38]} Kg7 $1 {[%emt 0:00:01]} 37. Qe7+ {[%emt 0:00:07]} Qf7 $1 {[%emt 0:00:14]} 38. Qxe4 {[%emt 0:00:05]} g4 {[%emt 0:00:12]} 39. Qxg4 {[%emt 0:00:38]} Ne5 {[%emt 0:00:23]} 40. Qd4 {[%emt 0:01:17]} Qf6 {[%emt 0:01:58]} 41. f4 {[%emt 0:00:38] [#]} Nf7 {[%emt 0:00:05]} 42. Qc4 {[%emt 0:00:29]} Qd6 {[%emt 0:00:34]} 43. a4 $2 {[%emt 0:00:39]} (43. Qd4+ {was called for.} Kh6 44. Qc4 Qd2+ 45. Kg1) 43... Nh6 {[%emt 0:00:31]} ({Avoid the trap} 43... Qd2+ $2 44. Kh3 $19) 44. Qe4 {[%emt 0:00:32]} Qd2+ {[%emt 0:00:47]} 45. Kh3 {[%emt 0:00:12]} Qd7+ {[%emt 0:00:22]} 46. Kg2 {[%emt 0:00:09]} Nf5 {[%emt 0:00:06]} 47. Qe5+ {[%emt 0:00:25]} Kh7 {[%emt 0:00:36]} 48. a5 {[%emt 0:00:52]} (48. Qe4 $142) 48... bxa5 {[%emt 0:01:09] And now ...a4 would win.} 49. Qxa5 {[%emt 0:00:32]} Qd5+ {[%emt 0:04:07]} 50. Qxd5 $17 {[%emt 0:00:05] Threatening mate with Qf7+.} Ne3+ {[%emt 0:00:01]} 51. Kf3 {[%emt 0:00:02] Intending Qf7+ and mate.} Nxd5 {[%emt 0:00:06] KN-KP} 52. c4 {[%emt 0:00:09] [#]} Nb4 {[%emt 0:00:13]} (52... Nf6 $1 $17 53. Ke3 (53. c5 Kg7 $17) 53... a5) 53. Ke3 $11 {[%emt 0:00:18]} Kg7 {[%emt 0:00:19]} 54. Kd4 {[%emt 0:00:18]} Kf7 {[%emt 0:02:27]} 55. Kc5 $2 {[%emt 0:00:52][%mdl 8192]} (55. c5 $11 {and White stays safe.}) 55... Nd3+ $2 {[%emt 0:02:04]} (55... Nc2 $19 56. g4 Ne3) 56. Kb5 $1 {[%emt 0:00:33] The position is equal.} Ke6 {[%emt 0:00:12]} 57. Ka6 {[%emt 0:00:06]} Kd6 {[%emt 0:00:24] Hoping for ...Kc5.} 58. Kxa7 {[%emt 0:00:07]} Kc5 {[%emt 0:00:01]} 59. Kb7 {[%emt 0:00:25]} Kxc4 {[%emt 0:00:03] aiming for ...Kd5.} 60. Kc6 {[%emt 0:00:05]} Kd4 {[%emt 0:01:10]} 61. Kd6 {[%emt 0:00:04]} Ke4 {[%emt 0:00:11]} 62. Ke6 {[%emt 0:00:07]} Nxf4+ {[%emt 0:00:24]} 63. gxf4 {[%emt 0:00:19]} Kxf4 {[%emt 0:00:05]} 64. Kf6 {[%emt 0:00:02]} g5 {[%emt 0:00:32] Whites escaped into a draw.  Weighted Error Value: White=0.54/Black=0.43} 1/2-1/2